Workbook

Sheet Punktide jälgimine
B1: Sisestage siia oma punktid
C3: Õppeaine | D3: Tüüp | E3: Kirjeldus | F3: Punktid
C4: Prantsuse keel | D4: Kodutööd | E4: II maailmasõja ajalugu | F4: 80%
C5: Programmeerimine Java-keeles | D5: Tasemetöö | F5: 75%
C6: Hispaania keel | D6: Kodutööd | F6: 50%
C7: Teoreetiline füüsika | D7: Kodutööd | F7: 95%
C8: Prantsuse keel | D8: Kodutööd | E8: I maailmasõja ajalugu | F8: 90%
C9: Prantsuse keel | D9: Kodutööd | E9: Lk 30–41 | F9: 80%
C10: Kirjand | D10: Essee | E10: Kaaskiri | F10: 95%
C11: Matemaatika 1 | D11: Kodutööd | E11: Lk 21 ja 26 | F11: 80%
C12: Matemaatika 2 | D12: Kodutööd | E12: Lk 15 ja 18 | F12: 85%
C13: Matemaatika 1 | D13: Kodutööd | E13: Lk 34–36 | F13: 80%
C14: Matemaatika 2 | D14: Tunnikontroll | F14: 95%

Sheet Teie edenemine
B1: Teie edenemine
C3: Kokku
C4: ="Tunnid: "&SUM(tblÕppeained[Ainepunktid]) -> Tunnid: 24 | D4: =AVERAGE(D7:D31) -> 81% | E4: =AVERAGE(E7:E31) -> 2.71 | F4: =SUM(F7:F31) -> 2.63 | G4: =IFERROR(HLOOKUP(D4,lstGPAMapping,2),"") -> B-
C6: Õppeained | D6: % | E6: Keskmine hinne | F6: Kaalutud keskmine hinne | G6: Täht | H6: Üldised näitajad
C7: =Arvutused!C6 -> Prantsuse keel | D7: =Arvutused!AL6 -> 83% | E7: =Arvutused!AM6 -> 3.00 | F7: =IFERROR(E7*Sätted!D9/SUM(tblÕppeained[Ainepunktid]),"") -> 0.38 | G7: =Arvutused!AN6 -> B
C8: =Arvutused!C7 -> Teoreetiline füüsika | D8: =Arvutused!AL7 -> 95% | E8: =Arvutused!AM7 -> 4.00 | F8: =IFERROR(E8*Sätted!D10/SUM(tblÕppeained[Ainepunktid]),"") -> 0.50 | G8: =Arvutused!AN7 -> A
C9: =Arvutused!C8 -> Matemaatika 1 | D9: =Arvutused!AL8 -> 80% | E9: =Arvutused!AM8 -> 2.67 | F9: =IFERROR(E9*Sätted!D11/SUM(tblÕppeained[Ainepunktid]),"") -> 0.45 | G9: =Arvutused!AN8 -> B-
C10: =Arvutused!C9 -> Matemaatika 2 | D10: =Arvutused!AL9 -> 89% | E10: =Arvutused!AM9 -> 3.33 | F10: =IFERROR(E10*Sätted!D12/SUM(tblÕppeained[Ainepunktid]),"") -> 0.56 | G10: =Arvutused!AN9 -> B+
C11: =Arvutused!C10 -> Programmeerimine Java-keeles | D11: =Arvutused!AL10 -> 75% | E11: =Arvutused!AM10 -> 2.00 | F11: =IFERROR(E11*Sätted!D13/SUM(tblÕppeained[Ainepunktid]),"") -> 0.42 | G11: =Arvutused!AN10 -> C
C12: =Arvutused!C11 -> Hispaania keel | D12: =Arvutused!AL11 -> 50% | E12: =Arvutused!AM11 -> 0.00 | F12: =IFERROR(E12*Sätted!D14/SUM(tblÕppeained[Ainepunktid]),"") -> 0.00 | G12: =Arvutused!AN11 -> F
C13: =Arvutused!C12 -> Kirjand | D13: =Arvutused!AL12 -> 95% | E13: =Arvutused!AM12 -> 4.00 | F13: =IFERROR(E13*Sätted!D15/SUM(tblÕppeained[Ainepunktid]),"") -> 0.33 | G13: =Arvutused!AN12 -> A
C14: =Arvutused!C13 ->  | D14: =Arvutused!AL13 ->  | E14: =Arvutused!AM13 ->  | F14: =IFERROR(E14*Sätted!D16/SUM(tblÕppeained[Ainepunktid]),"") ->  | G14: =Arvutused!AN13 -> 
C15: =Arvutused!C14 ->  | D15: =Arvutused!AL14 ->  | E15: =Arvutused!AM14 ->  | F15: =IFERROR(E15*Sätted!D17/SUM(tblÕppeained[Ainepunktid]),"") ->  | G15: =Arvutused!AN14 -> 
C16: =Arvutused!C15 ->  | D16: =Arvutused!AL15 ->  | E16: =Arvutused!AM15 ->  | F16: =IFERROR(E16*Sätted!D18/SUM(tblÕppeained[Ainepunktid]),"") ->  | G16: =Arvutused!AN15 -> 
C17: =Arvutused!C16 ->  | D17: =Arvutused!AL16 ->  | E17: =Arvutused!AM16 ->  | F17: =IFERROR(E17*Sätted!D19/SUM(tblÕppeained[Ainepunktid]),"") ->  | G17: =Arvutused!AN16 -> 
C18: =Arvutused!C17 ->  | D18: =Arvutused!AL17 ->  | E18: =Arvutused!AM17 ->  | F18: =IFERROR(E18*Sätted!D20/SUM(tblÕppeained[Ainepunktid]),"") ->  | G18: =Arvutused!AN17 -> 
C19: =Arvutused!C18 ->  | D19: =Arvutused!AL18 ->  | E19: =Arvutused!AM18 ->  | F19: =IFERROR(E19*Sätted!D21/SUM(tblÕppeained[Ainepunktid]),"") ->  | G19: =Arvutused!AN18 -> 
C20: =Arvutused!C19 ->  | D20: =Arvutused!AL19 ->  | E20: =Arvutused!AM19 ->  | F20: =IFERROR(E20*Sätted!D22/SUM(tblÕppeained[Ainepunktid]),"") ->  | G20: =Arvutused!AN19 -> 
C21: =Arvutused!C20 ->  | D21: =Arvutused!AL20 ->  | E21: =Arvutused!AM20 ->  | F21: =IFERROR(E21*Sätted!D23/SUM(tblÕppeained[Ainepunktid]),"") ->  | G21: =Arvutused!AN20 -> 
C22: =Arvutused!C21 ->  | D22: =Arvutused!AL21 ->  | E22: =Arvutused!AM21 ->  | F22: =IFERROR(E22*Sätted!D24/SUM(tblÕppeained[Ainepunktid]),"") ->  | G22: =Arvutused!AN21 -> 
C23: =Arvutused!C22 ->  | D23: =Arvutused!AL22 ->  | E23: =Arvutused!AM22 ->  | F23: =IFERROR(E23*Sätted!D25/SUM(tblÕppeained[Ainepunktid]),"") ->  | G23: =Arvutused!AN22 -> 
C24: =Arvutused!C23 ->  | D24: =Arvutused!AL23 ->  | E24: =Arvutused!AM23 ->  | F24: =IFERROR(E24*Sätted!D26/SUM(tblÕppeained[Ainepunktid]),"") ->  | G24: =Arvutused!AN23 -> 
C25: =Arvutused!C24 ->  | D25: =Arvutused!AL24 ->  | E25: =Arvutused!AM24 ->  | F25: =IFERROR(E25*Sätted!D27/SUM(tblÕppeained[Ainepunktid]),"") ->  | G25: =Arvutused!AN24 -> 
C26: =Arvutused!C25 ->  | D26: =Arvutused!AL25 ->  | E26: =Arvutused!AM25 ->  | F26: =IFERROR(E26*Sätted!D28/SUM(tblÕppeained[Ainepunktid]),"") ->  | G26: =Arvutused!AN25 -> 
C27: =Arvutused!C26 ->  | D27: =Arvutused!AL26 ->  | E27: =Arvutused!AM26 ->  | F27: =IFERROR(E27*Sätted!D29/SUM(tblÕppeained[Ainepunktid]),"") ->  | G27: =Arvutused!AN26 -> 
C28: =Arvutused!C27 ->  | D28: =Arvutused!AL27 ->  | E28: =Arvutused!AM27 ->  | F28: =IFERROR(E28*Sätted!D30/SUM(tblÕppeained[Ainepunktid]),"") ->  | G28: =Arvutused!AN27 -> 
C29: =Arvutused!C28 ->  | D29: =Arvutused!AL28 ->  | E29: =Arvutused!AM28 ->  | F29: =IFERROR(E29*Sätted!D31/SUM(tblÕppeained[Ainepunktid]),"") ->  | G29: =Arvutused!AN28 -> 
C30: =Arvutused!C29 ->  | D30: =Arvutused!AL29 ->  | E30: =Arvutused!AM29 ->  | F30: =IFERROR(E30*Sätted!D32/SUM(tblÕppeained[Ainepunktid]),"") ->  | G30: =Arvutused!AN29 -> 
C31: =Arvutused!C30 ->  | D31: =Arvutused!AL30 ->  | E31: =Arvutused!AM30 ->  | F31: =IFERROR(E31*Sätted!D33/SUM(tblÕppeained[Ainepunktid]),"") ->  | G31: =Arvutused!AN30 -> 

Sheet Sätted
B1: Sätted
C2: Hinded ja keskmise hinde vastendamine
C3: Protsent | D3: 0% | E3: 60% | F3: 63% | G3: 67% | H3: 70% | I3: 73% | J3: 77% | K3: 80% | L3: 83% | M3: 87% | N3: 90% | O3: 93% | P3: 97%
C4: Hinne tähena | D4: F | E4: D- | F4: D | G4: D+ | H4: C- | I4: C | J4: C+ | K4: B- | L4: B | M4: B+ | N4: A- | O4: A | P4: A+
C5: Keskmine hinne | D5: 0 | E5: 0.67 | F5: 1 | G5: 1.33 | H5: 1.67 | I5: 2 | J5: 2.33 | K5: 2.67 | L5: 3 | M5: 3.33 | N5: 3.67 | O5: 4 | P5: 4
C7: Kaalutud hinded kuni 25 õppeaine jaoks
C8: Õpilase ained | D8: Ainepunktid | E8: Kodutööd | F8: Essee | G8: Tunnikontroll | H8: Projekt | I8: Tasemetöö | J8: Lõpueksam | K8: Muu | L8: % kokku
C9: Prantsuse keel | D9: 3.0 | E9: 10% | F9: 15% | G9: 15% | H9: 10% | I9: 20% | J9: 30% | L9: =SUM(tblÕppeained[[#This Row],[Kodutööd]:[Muu]]) -> 100%
C10: Teoreetiline füüsika | D10: 3.0 | E10: 15% | F10: 15% | G10: 10% | H10: 10% | I10: 15% | J10: 30% | K10: 5% | L10: =SUM(tblÕppeained[[#This Row],[Kodutööd]:[Muu]]) -> 100%
C11: Matemaatika 1 | D11: 4.0 | E11: 10% | F11: 15% | G11: 15% | H11: 10% | I11: 20% | J11: 30% | L11: =SUM(tblÕppeained[[#This Row],[Kodutööd]:[Muu]]) -> 100%
C12: Matemaatika 2 | D12: 4.0 | E12: 15% | F12: 15% | G12: 10% | H12: 10% | I12: 15% | J12: 30% | K12: 5% | L12: =SUM(tblÕppeained[[#This Row],[Kodutööd]:[Muu]]) -> 100%
C13: Programmeerimine Java-keeles | D13: 5.0 | E13: 15% | F13: 15% | G13: 10% | H13: 10% | I13: 20% | J13: 30% | L13: =SUM(tblÕppeained[[#This Row],[Kodutööd]:[Muu]]) -> 100%
C14: Hispaania keel | D14: 3.0 | E14: 10% | F14: 15% | G14: 17% | H14: 13% | I14: 20% | J14: 20% | K14: 5% | L14: =SUM(tblÕppeained[[#This Row],[Kodutööd]:[Muu]]) -> 100%
C15: Kirjand | D15: 2.0 | E15: 15% | F15: 15% | G15: 12% | H15: 15% | I15: 15% | J15: 25% | K15: 3% | L15: =SUM(tblÕppeained[[#This Row],[Kodutööd]:[Muu]]) -> 100%

Sheet Arvutused (hidden)
B1: Arvutused
C2: Sellel töölehel arvutatakse teie hinded ja keskmine hinne ning see peaks jääma peidetuks. Kui sellel lehel muudatusi teha, võib see kaasa tuua vigu.
C4: Praegused õppeained | D4: Punktisummad (tervik on 1) | AC4: Hinde arvutamine
C5: Õppeaine | D5: 1 | E5: 2 | F5: 3 | G5: 4 | H5: 5 | I5: 6 | J5: 7 | K5: 8 | L5: 9 | M5: 10 | N5: 11 | O5: 12 | P5: 13 | Q5: 14 | R5: 15 | S5: 16 | T5: 17 | U5: 18 | V5: 19 | W5: 20 | X5: 21 | Y5: 22 | Z5: 23 | AA5: 24 | AB5: 25 | AC5: =tblÕppeained[[#Headers],[Kodutööd]] -> Kodutööd | AD5: =tblÕppeained[[#Headers],[Essee]] -> Essee | AE5: =tblÕppeained[[#Headers],[Tunnikontroll]] -> Tunnikontroll | AF5: =tblÕppeained[[#Headers],[Projekt]] -> Projekt | AG5: =tblÕppeained[[#Headers],[Tasemetöö]] -> Tasemetöö | AH5: =tblÕppeained[[#Headers],[Lõpueksam]] -> Lõpueksam | AI5: =tblÕppeained[[#Headers],[Muu]] -> Muu | AJ5: Kokku | AK5: Võimalikud punktid kokku | AL5: Kokku % | AM5: Hinne | AN5: Hinne tähena
C6: =IF(Sätted!C9="","",Sätted!C9) -> Prantsuse keel | D6: =IFERROR(INDEX(tblÕppeainedHinded[],MATCH($C6:$C30&D$5:AB$5,Arvutused!$C$33:$C$657,0),4),"") -> 80% | E6: 90% | F6: 80% | AC6: =IFERROR(AVERAGEIFS(tblÕppeainedHinded[Punktid],tblÕppeainedHinded[Õppeaine],Arvutused!$C6,tblÕppeainedHinded[Tüüp],Arvutused!AC$5)*Sätted!E9,"") -> 0.08333333333 | AD6: =IFERROR(AVERAGEIFS(tblÕppeainedHinded[Punktid],tblÕppeainedHinded[Õppeaine],Arvutused!$C6,tblÕppeainedHinded[Tüüp],Arvutused!AD$5)*Sätted!F9,"") ->  | AE6: =IFERROR(AVERAGEIFS(tblÕppeainedHinded[Punktid],tblÕppeainedHinded[Õppeaine],Arvutused!$C6,tblÕppeainedHinded[Tüüp],Arvutused!AE$5)*Sätted!G9,"") ->  | AF6: =IFERROR(AVERAGEIFS(tblÕppeainedHinded[Punktid],tblÕppeainedHinded[Õppeaine],Arvutused!$C6,tblÕppeainedHinded[Tüüp],Arvutused!AF$5)*Sätted!H9,"") ->  | AG6: =IFERROR(AVERAGEIFS(tblÕppeainedHinded[Punktid],tblÕppeainedHinded[Õppeaine],Arvutused!$C6,tblÕppeainedHinded[Tüüp],Arvutused!AG$5)*Sätted!I9,"") ->  | AH6: =IFERROR(AVERAGEIFS(tblÕppeainedHinded[Punktid],tblÕppeainedHinded[Õppeaine],Arvutused!$C6,tblÕppeainedHinded[Tüüp],Arvutused!AH$5)*Sätted!J9,"") ->  | AI6: =IFERROR(AVERAGEIFS(tblÕppeainedHinded[Punktid],tblÕppeainedHinded[Õppeaine],Arvutused!$C6,tblÕppeainedHinded[Tüüp],Arvutused!AI$5)*Sätted!K9,"") ->  | AJ6: =SUM(AC6:AI6) -> 0.08333333333 | AK6: =SUMIFS(Sätted!E9:K9,Arvutused!AC6:AI6,">0") -> 0.1 | AL6: =IFERROR(AJ6/AK6,"") -> 83% | AM6: =IFERROR(HLOOKUP(AL6,lstGPAMapping,3),"") -> 3 | AN6: =IFERROR(HLOOKUP(AL6,lstGPAMapping,2),"") -> B
C7: =IF(Sätted!C10="","",Sätted!C10) -> Teoreetiline füüsika | D7: 95% | AC7: =IFERROR(AVERAGEIFS(tblÕppeainedHinded[Punktid],tblÕppeainedHinded[Õppeaine],Arvutused!$C7,tblÕppeainedHinded[Tüüp],Arvutused!AC$5)*Sätted!E10,"") -> 0.1425 | AD7: =IFERROR(AVERAGEIFS(tblÕppeainedHinded[Punktid],tblÕppeainedHinded[Õppeaine],Arvutused!$C7,tblÕppeainedHinded[Tüüp],Arvutused!AD$5)*Sätted!F10,"") ->  | AE7: =IFERROR(AVERAGEIFS(tblÕppeainedHinded[Punktid],tblÕppeainedHinded[Õppeaine],Arvutused!$C7,tblÕppeainedHinded[Tüüp],Arvutused!AE$5)*Sätted!G10,"") ->  | AF7: =IFERROR(AVERAGEIFS(tblÕppeainedHinded[Punktid],tblÕppeainedHinded[Õppeaine],Arvutused!$C7,tblÕppeainedHinded[Tüüp],Arvutused!AF$5)*Sätted!H10,"") ->  | AG7: =IFERROR(AVERAGEIFS(tblÕppeainedHinded[Punktid],tblÕppeainedHinded[Õppeaine],Arvutused!$C7,tblÕppeainedHinded[Tüüp],Arvutused!AG$5)*Sätted!I10,"") ->  | AH7: =IFERROR(AVERAGEIFS(tblÕppeainedHinded[Punktid],tblÕppeainedHinded[Õppeaine],Arvutused!$C7,tblÕppeainedHinded[Tüüp],Arvutused!AH$5)*Sätted!J10,"") ->  | AI7: =IFERROR(AVERAGEIFS(tblÕppeainedHinded[Punktid],tblÕppeainedHinded[Õppeaine],Arvutused!$C7,tblÕppeainedHinded[Tüüp],Arvutused!AI$5)*Sätted!K10,"") ->  | AJ7: =SUM(AC7:AI7) -> 0.1425 | AK7: =SUMIFS(Sätted!E10:K10,Arvutused!AC7:AI7,">0") -> 0.15 | AL7: =IFERROR(AJ7/AK7,"") -> 95% | AM7: 4 | AN7: A
C8: =IF(Sätted!C11="","",Sätted!C11) -> Matemaatika 1 | D8: 80% | E8: 80% | AC8: =IFERROR(AVERAGEIFS(tblÕppeainedHinded[Punktid],tblÕppeainedHinded[Õppeaine],Arvutused!$C8,tblÕppeainedHinded[Tüüp],Arvutused!AC$5)*Sätted!E11,"") -> 0.08 | AD8: =IFERROR(AVERAGEIFS(tblÕppeainedHinded[Punktid],tblÕppeainedHinded[Õppeaine],Arvutused!$C8,tblÕppeainedHinded[Tüüp],Arvutused!AD$5)*Sätted!F11,"") ->  | AE8: =IFERROR(AVERAGEIFS(tblÕppeainedHinded[Punktid],tblÕppeainedHinded[Õppeaine],Arvutused!$C8,tblÕppeainedHinded[Tüüp],Arvutused!AE$5)*Sätted!G11,"") ->  | AF8: =IFERROR(AVERAGEIFS(tblÕppeainedHinded[Punktid],tblÕppeainedHinded[Õppeaine],Arvutused!$C8,tblÕppeainedHinded[Tüüp],Arvutused!AF$5)*Sätted!H11,"") ->  | AG8: =IFERROR(AVERAGEIFS(tblÕppeainedHinded[Punktid],tblÕppeainedHinded[Õppeaine],Arvutused!$C8,tblÕppeainedHinded[Tüüp],Arvutused!AG$5)*Sätted!I11,"") ->  | AH8: =IFERROR(AVERAGEIFS(tblÕppeainedHinded[Punktid],tblÕppeainedHinded[Õppeaine],Arvutused!$C8,tblÕppeainedHinded[Tüüp],Arvutused!AH$5)*Sätted!J11,"") ->  | AI8: =IFERROR(AVERAGEIFS(tblÕppeainedHinded[Punktid],tblÕppeainedHinded[Õppeaine],Arvutused!$C8,tblÕppeainedHinded[Tüüp],Arvutused!AI$5)*Sätted!K11,"") ->  | AJ8: 0.08 | AK8: =SUMIFS(Sätted!E11:K11,Arvutused!AC8:AI8,">0") -> 0.1 | AL8: 80% | AM8: 2.67 | AN8: B-
C9: =IF(Sätted!C12="","",Sätted!C12) -> Matemaatika 2 | D9: 85% | E9: 95% | AC9: =IFERROR(AVERAGEIFS(tblÕppeainedHinded[Punktid],tblÕppeainedHinded[Õppeaine],Arvutused!$C9,tblÕppeainedHinded[Tüüp],Arvutused!AC$5)*Sätted!E12,"") -> 0.1275 | AD9: =IFERROR(AVERAGEIFS(tblÕppeainedHinded[Punktid],tblÕppeainedHinded[Õppeaine],Arvutused!$C9,tblÕppeainedHinded[Tüüp],Arvutused!AD$5)*Sätted!F12,"") ->  | AE9: =IFERROR(AVERAGEIFS(tblÕppeainedHinded[Punktid],tblÕppeainedHinded[Õppeaine],Arvutused!$C9,tblÕppeainedHinded[Tüüp],Arvutused!AE$5)*Sätted!G12,"") -> 0.095 | AF9: =IFERROR(AVERAGEIFS(tblÕppeainedHinded[Punktid],tblÕppeainedHinded[Õppeaine],Arvutused!$C9,tblÕppeainedHinded[Tüüp],Arvutused!AF$5)*Sätted!H12,"") ->  | AG9: =IFERROR(AVERAGEIFS(tblÕppeainedHinded[Punktid],tblÕppeainedHinded[Õppeaine],Arvutused!$C9,tblÕppeainedHinded[Tüüp],Arvutused!AG$5)*Sätted!I12,"") ->  | AH9: =IFERROR(AVERAGEIFS(tblÕppeainedHinded[Punktid],tblÕppeainedHinded[Õppeaine],Arvutused!$C9,tblÕppeainedHinded[Tüüp],Arvutused!AH$5)*Sätted!J12,"") ->  | AI9: =IFERROR(AVERAGEIFS(tblÕppeainedHinded[Punktid],tblÕppeainedHinded[Õppeaine],Arvutused!$C9,tblÕppeainedHinded[Tüüp],Arvutused!AI$5)*Sätted!K12,"") ->  | AJ9: 0.2225 | AK9: =SUMIFS(Sätted!E12:K12,Arvutused!AC9:AI9,">0") -> 0.25 | AL9: 89% | AM9: 3.33 | AN9: B+
C10: =IF(Sätted!C13="","",Sätted!C13) -> Programmeerimine Java-keeles | D10: 75% | AC10: =IFERROR(AVERAGEIFS(tblÕppeainedHinded[Punktid],tblÕppeainedHinded[Õppeaine],Arvutused!$C10,tblÕppeainedHinded[Tüüp],Arvutused!AC$5)*Sätted!E13,"") ->  | AD10: =IFERROR(AVERAGEIFS(tblÕppeainedHinded[Punktid],tblÕppeainedHinded[Õppeaine],Arvutused!$C10,tblÕppeainedHinded[Tüüp],Arvutused!AD$5)*Sätted!F13,"") ->  | AE10: =IFERROR(AVERAGEIFS(tblÕppeainedHinded[Punktid],tblÕppeainedHinded[Õppeaine],Arvutused!$C10,tblÕppeainedHinded[Tüüp],Arvutused!AE$5)*Sätted!G13,"") ->  | AF10: =IFERROR(AVERAGEIFS(tblÕppeainedHinded[Punktid],tblÕppeainedHinded[Õppeaine],Arvutused!$C10,tblÕppeainedHinded[Tüüp],Arvutused!AF$5)*Sätted!H13,"") ->  | AG10: =IFERROR(AVERAGEIFS(tblÕppeainedHinded[Punktid],tblÕppeainedHinded[Õppeaine],Arvutused!$C10,tblÕppeainedHinded[Tüüp],Arvutused!AG$5)*Sätted!I13,"") -> 0.15 | AH10: =IFERROR(AVERAGEIFS(tblÕppeainedHinded[Punktid],tblÕppeainedHinded[Õppeaine],Arvutused!$C10,tblÕppeainedHinded[Tüüp],Arvutused!AH$5)*Sätted!J13,"") ->  | AI10: =IFERROR(AVERAGEIFS(tblÕppeainedHinded[Punktid],tblÕppeainedHinded[Õppeaine],Arvutused!$C10,tblÕppeainedHinded[Tüüp],Arvutused!AI$5)*Sätted!K13,"") ->  | AJ10: 0.15 | AK10: =SUMIFS(Sätted!E13:K13,Arvutused!AC10:AI10,">0") -> 0.2 | AL10: 75% | AM10: 2 | AN10: C
C11: =IF(Sätted!C14="","",Sätted!C14) -> Hispaania keel | D11: 50% | AC11: =IFERROR(AVERAGEIFS(tblÕppeainedHinded[Punktid],tblÕppeainedHinded[Õppeaine],Arvutused!$C11,tblÕppeainedHinded[Tüüp],Arvutused!AC$5)*Sätted!E14,"") -> 0.05 | AD11: =IFERROR(AVERAGEIFS(tblÕppeainedHinded[Punktid],tblÕppeainedHinded[Õppeaine],Arvutused!$C11,tblÕppeainedHinded[Tüüp],Arvutused!AD$5)*Sätted!F14,"") ->  | AE11: =IFERROR(AVERAGEIFS(tblÕppeainedHinded[Punktid],tblÕppeainedHinded[Õppeaine],Arvutused!$C11,tblÕppeainedHinded[Tüüp],Arvutused!AE$5)*Sätted!G14,"") ->  | AF11: =IFERROR(AVERAGEIFS(tblÕppeainedHinded[Punktid],tblÕppeainedHinded[Õppeaine],Arvutused!$C11,tblÕppeainedHinded[Tüüp],Arvutused!AF$5)*Sätted!H14,"") ->  | AG11: =IFERROR(AVERAGEIFS(tblÕppeainedHinded[Punktid],tblÕppeainedHinded[Õppeaine],Arvutused!$C11,tblÕppeainedHinded[Tüüp],Arvutused!AG$5)*Sätted!I14,"") ->  | AH11: =IFERROR(AVERAGEIFS(tblÕppeainedHinded[Punktid],tblÕppeainedHinded[Õppeaine],Arvutused!$C11,tblÕppeainedHinded[Tüüp],Arvutused!AH$5)*Sätted!J14,"") ->  | AI11: =IFERROR(AVERAGEIFS(tblÕppeainedHinded[Punktid],tblÕppeainedHinded[Õppeaine],Arvutused!$C11,tblÕppeainedHinded[Tüüp],Arvutused!AI$5)*Sätted!K14,"") ->  | AJ11: 0.05 | AK11: =SUMIFS(Sätted!E14:K14,Arvutused!AC11:AI11,">0") -> 0.1 | AL11: 50% | AM11: 0 | AN11: F
C12: =IF(Sätted!C15="","",Sätted!C15) -> Kirjand | D12: 95% | AC12: =IFERROR(AVERAGEIFS(tblÕppeainedHinded[Punktid],tblÕppeainedHinded[Õppeaine],Arvutused!$C12,tblÕppeainedHinded[Tüüp],Arvutused!AC$5)*Sätted!E15,"") ->  | AD12: =IFERROR(AVERAGEIFS(tblÕppeainedHinded[Punktid],tblÕppeainedHinded[Õppeaine],Arvutused!$C12,tblÕppeainedHinded[Tüüp],Arvutused!AD$5)*Sätted!F15,"") -> 0.1425 | AE12: =IFERROR(AVERAGEIFS(tblÕppeainedHinded[Punktid],tblÕppeainedHinded[Õppeaine],Arvutused!$C12,tblÕppeainedHinded[Tüüp],Arvutused!AE$5)*Sätted!G15,"") ->  | AF12: =IFERROR(AVERAGEIFS(tblÕppeainedHinded[Punktid],tblÕppeainedHinded[Õppeaine],Arvutused!$C12,tblÕppeainedHinded[Tüüp],Arvutused!AF$5)*Sätted!H15,"") ->  | AG12: =IFERROR(AVERAGEIFS(tblÕppeainedHinded[Punktid],tblÕppeainedHinded[Õppeaine],Arvutused!$C12,tblÕppeainedHinded[Tüüp],Arvutused!AG$5)*Sätted!I15,"") ->  | AH12: =IFERROR(AVERAGEIFS(tblÕppeainedHinded[Punktid],tblÕppeainedHinded[Õppeaine],Arvutused!$C12,tblÕppeainedHinded[Tüüp],Arvutused!AH$5)*Sätted!J15,"") ->  | AI12: =IFERROR(AVERAGEIFS(tblÕppeainedHinded[Punktid],tblÕppeainedHinded[Õppeaine],Arvutused!$C12,tblÕppeainedHinded[Tüüp],Arvutused!AI$5)*Sätted!K15,"") ->  | AJ12: 0.1425 | AK12: =SUMIFS(Sätted!E15:K15,Arvutused!AC12:AI12,">0") -> 0.15 | AL12: 95% | AM12: 4 | AN12: A
C13: =IF(Sätted!C16="","",Sätted!C16) ->  | AC13: =IFERROR(AVERAGEIFS(tblÕppeainedHinded[Punktid],tblÕppeainedHinded[Õppeaine],Arvutused!$C13,tblÕppeainedHinded[Tüüp],Arvutused!AC$5)*Sätted!E16,"") ->  | AD13: =IFERROR(AVERAGEIFS(tblÕppeainedHinded[Punktid],tblÕppeainedHinded[Õppeaine],Arvutused!$C13,tblÕppeainedHinded[Tüüp],Arvutused!AD$5)*Sätted!F16,"") ->  | AE13: =IFERROR(AVERAGEIFS(tblÕppeainedHinded[Punktid],tblÕppeainedHinded[Õppeaine],Arvutused!$C13,tblÕppeainedHinded[Tüüp],Arvutused!AE$5)*Sätted!G16,"") ->  | AF13: =IFERROR(AVERAGEIFS(tblÕppeainedHinded[Punktid],tblÕppeainedHinded[Õppeaine],Arvutused!$C13,tblÕppeainedHinded[Tüüp],Arvutused!AF$5)*Sätted!H16,"") ->  | AG13: =IFERROR(AVERAGEIFS(tblÕppeainedHinded[Punktid],tblÕppeainedHinded[Õppeaine],Arvutused!$C13,tblÕppeainedHinded[Tüüp],Arvutused!AG$5)*Sätted!I16,"") ->  | AH13: =IFERROR(AVERAGEIFS(tblÕppeainedHinded[Punktid],tblÕppeainedHinded[Õppeaine],Arvutused!$C13,tblÕppeainedHinded[Tüüp],Arvutused!AH$5)*Sätted!J16,"") ->  | AI13: =IFERROR(AVERAGEIFS(tblÕppeainedHinded[Punktid],tblÕppeainedHinded[Õppeaine],Arvutused!$C13,tblÕppeainedHinded[Tüüp],Arvutused!AI$5)*Sätted!K16,"") ->  | AJ13: 0 | AK13: =SUMIFS(Sätted!E16:K16,Arvutused!AC13:AI13,">0") -> 0
C14: =IF(Sätted!C17="","",Sätted!C17) ->  | AC14: =IFERROR(AVERAGEIFS(tblÕppeainedHinded[Punktid],tblÕppeainedHinded[Õppeaine],Arvutused!$C14,tblÕppeainedHinded[Tüüp],Arvutused!AC$5)*Sätted!E17,"") ->  | AD14: =IFERROR(AVERAGEIFS(tblÕppeainedHinded[Punktid],tblÕppeainedHinded[Õppeaine],Arvutused!$C14,tblÕppeainedHinded[Tüüp],Arvutused!AD$5)*Sätted!F17,"") ->  | AE14: =IFERROR(AVERAGEIFS(tblÕppeainedHinded[Punktid],tblÕppeainedHinded[Õppeaine],Arvutused!$C14,tblÕppeainedHinded[Tüüp],Arvutused!AE$5)*Sätted!G17,"") ->  | AF14: =IFERROR(AVERAGEIFS(tblÕppeainedHinded[Punktid],tblÕppeainedHinded[Õppeaine],Arvutused!$C14,tblÕppeainedHinded[Tüüp],Arvutused!AF$5)*Sätted!H17,"") ->  | AG14: =IFERROR(AVERAGEIFS(tblÕppeainedHinded[Punktid],tblÕppeainedHinded[Õppeaine],Arvutused!$C14,tblÕppeainedHinded[Tüüp],Arvutused!AG$5)*Sätted!I17,"") ->  | AH14: =IFERROR(AVERAGEIFS(tblÕppeainedHinded[Punktid],tblÕppeainedHinded[Õppeaine],Arvutused!$C14,tblÕppeainedHinded[Tüüp],Arvutused!AH$5)*Sätted!J17,"") ->  | AI14: =IFERROR(AVERAGEIFS(tblÕppeainedHinded[Punktid],tblÕppeainedHinded[Õppeaine],Arvutused!$C14,tblÕppeainedHinded[Tüüp],Arvutused!AI$5)*Sätted!K17,"") ->  | AJ14: 0 | AK14: =SUMIFS(Sätted!E17:K17,Arvutused!AC14:AI14,">0") -> 0
C15: =IF(Sätted!C18="","",Sätted!C18) ->  | AC15: =IFERROR(AVERAGEIFS(tblÕppeainedHinded[Punktid],tblÕppeainedHinded[Õppeaine],Arvutused!$C15,tblÕppeainedHinded[Tüüp],Arvutused!AC$5)*Sätted!E18,"") ->  | AD15: =IFERROR(AVERAGEIFS(tblÕppeainedHinded[Punktid],tblÕppeainedHinded[Õppeaine],Arvutused!$C15,tblÕppeainedHinded[Tüüp],Arvutused!AD$5)*Sätted!F18,"") ->  | AE15: =IFERROR(AVERAGEIFS(tblÕppeainedHinded[Punktid],tblÕppeainedHinded[Õppeaine],Arvutused!$C15,tblÕppeainedHinded[Tüüp],Arvutused!AE$5)*Sätted!G18,"") ->  | AF15: =IFERROR(AVERAGEIFS(tblÕppeainedHinded[Punktid],tblÕppeainedHinded[Õppeaine],Arvutused!$C15,tblÕppeainedHinded[Tüüp],Arvutused!AF$5)*Sätted!H18,"") ->  | AG15: =IFERROR(AVERAGEIFS(tblÕppeainedHinded[Punktid],tblÕppeainedHinded[Õppeaine],Arvutused!$C15,tblÕppeainedHinded[Tüüp],Arvutused!AG$5)*Sätted!I18,"") ->  | AH15: =IFERROR(AVERAGEIFS(tblÕppeainedHinded[Punktid],tblÕppeainedHinded[Õppeaine],Arvutused!$C15,tblÕppeainedHinded[Tüüp],Arvutused!AH$5)*Sätted!J18,"") ->  | AI15: =IFERROR(AVERAGEIFS(tblÕppeainedHinded[Punktid],tblÕppeainedHinded[Õppeaine],Arvutused!$C15,tblÕppeainedHinded[Tüüp],Arvutused!AI$5)*Sätted!K18,"") ->  | AJ15: 0 | AK15: =SUMIFS(Sätted!E18:K18,Arvutused!AC15:AI15,">0") -> 0
C16: =IF(Sätted!C19="","",Sätted!C19) ->  | AC16: =IFERROR(AVERAGEIFS(tblÕppeainedHinded[Punktid],tblÕppeainedHinded[Õppeaine],Arvutused!$C16,tblÕppeainedHinded[Tüüp],Arvutused!AC$5)*Sätted!E19,"") ->  | AD16: =IFERROR(AVERAGEIFS(tblÕppeainedHinded[Punktid],tblÕppeainedHinded[Õppeaine],Arvutused!$C16,tblÕppeainedHinded[Tüüp],Arvutused!AD$5)*Sätted!F19,"") ->  | AE16: =IFERROR(AVERAGEIFS(tblÕppeainedHinded[Punktid],tblÕppeainedHinded[Õppeaine],Arvutused!$C16,tblÕppeainedHinded[Tüüp],Arvutused!AE$5)*Sätted!G19,"") ->  | AF16: =IFERROR(AVERAGEIFS(tblÕppeainedHinded[Punktid],tblÕppeainedHinded[Õppeaine],Arvutused!$C16,tblÕppeainedHinded[Tüüp],Arvutused!AF$5)*Sätted!H19,"") ->  | AG16: =IFERROR(AVERAGEIFS(tblÕppeainedHinded[Punktid],tblÕppeainedHinded[Õppeaine],Arvutused!$C16,tblÕppeainedHinded[Tüüp],Arvutused!AG$5)*Sätted!I19,"") ->  | AH16: =IFERROR(AVERAGEIFS(tblÕppeainedHinded[Punktid],tblÕppeainedHinded[Õppeaine],Arvutused!$C16,tblÕppeainedHinded[Tüüp],Arvutused!AH$5)*Sätted!J19,"") ->  | AI16: =IFERROR(AVERAGEIFS(tblÕppeainedHinded[Punktid],tblÕppeainedHinded[Õppeaine],Arvutused!$C16,tblÕppeainedHinded[Tüüp],Arvutused!AI$5)*Sätted!K19,"") ->  | AJ16: 0 | AK16: =SUMIFS(Sätted!E19:K19,Arvutused!AC16:AI16,">0") -> 0
C17: =IF(Sätted!C20="","",Sätted!C20) ->  | AC17: =IFERROR(AVERAGEIFS(tblÕppeainedHinded[Punktid],tblÕppeainedHinded[Õppeaine],Arvutused!$C17,tblÕppeainedHinded[Tüüp],Arvutused!AC$5)*Sätted!E20,"") ->  | AD17: =IFERROR(AVERAGEIFS(tblÕppeainedHinded[Punktid],tblÕppeainedHinded[Õppeaine],Arvutused!$C17,tblÕppeainedHinded[Tüüp],Arvutused!AD$5)*Sätted!F20,"") ->  | AE17: =IFERROR(AVERAGEIFS(tblÕppeainedHinded[Punktid],tblÕppeainedHinded[Õppeaine],Arvutused!$C17,tblÕppeainedHinded[Tüüp],Arvutused!AE$5)*Sätted!G20,"") ->  | AF17: =IFERROR(AVERAGEIFS(tblÕppeainedHinded[Punktid],tblÕppeainedHinded[Õppeaine],Arvutused!$C17,tblÕppeainedHinded[Tüüp],Arvutused!AF$5)*Sätted!H20,"") ->  | AG17: =IFERROR(AVERAGEIFS(tblÕppeainedHinded[Punktid],tblÕppeainedHinded[Õppeaine],Arvutused!$C17,tblÕppeainedHinded[Tüüp],Arvutused!AG$5)*Sätted!I20,"") ->  | AH17: =IFERROR(AVERAGEIFS(tblÕppeainedHinded[Punktid],tblÕppeainedHinded[Õppeaine],Arvutused!$C17,tblÕppeainedHinded[Tüüp],Arvutused!AH$5)*Sätted!J20,"") ->  | AI17: =IFERROR(AVERAGEIFS(tblÕppeainedHinded[Punktid],tblÕppeainedHinded[Õppeaine],Arvutused!$C17,tblÕppeainedHinded[Tüüp],Arvutused!AI$5)*Sätted!K20,"") ->  | AJ17: 0 | AK17: =SUMIFS(Sätted!E20:K20,Arvutused!AC17:AI17,">0") -> 0
C18: =IF(Sätted!C21="","",Sätted!C21) ->  | AC18: =IFERROR(AVERAGEIFS(tblÕppeainedHinded[Punktid],tblÕppeainedHinded[Õppeaine],Arvutused!$C18,tblÕppeainedHinded[Tüüp],Arvutused!AC$5)*Sätted!E21,"") ->  | AD18: =IFERROR(AVERAGEIFS(tblÕppeainedHinded[Punktid],tblÕppeainedHinded[Õppeaine],Arvutused!$C18,tblÕppeainedHinded[Tüüp],Arvutused!AD$5)*Sätted!F21,"") ->  | AE18: =IFERROR(AVERAGEIFS(tblÕppeainedHinded[Punktid],tblÕppeainedHinded[Õppeaine],Arvutused!$C18,tblÕppeainedHinded[Tüüp],Arvutused!AE$5)*Sätted!G21,"") ->  | AF18: =IFERROR(AVERAGEIFS(tblÕppeainedHinded[Punktid],tblÕppeainedHinded[Õppeaine],Arvutused!$C18,tblÕppeainedHinded[Tüüp],Arvutused!AF$5)*Sätted!H21,"") ->  | AG18: =IFERROR(AVERAGEIFS(tblÕppeainedHinded[Punktid],tblÕppeainedHinded[Õppeaine],Arvutused!$C18,tblÕppeainedHinded[Tüüp],Arvutused!AG$5)*Sätted!I21,"") ->  | AH18: =IFERROR(AVERAGEIFS(tblÕppeainedHinded[Punktid],tblÕppeainedHinded[Õppeaine],Arvutused!$C18,tblÕppeainedHinded[Tüüp],Arvutused!AH$5)*Sätted!J21,"") ->  | AI18: =IFERROR(AVERAGEIFS(tblÕppeainedHinded[Punktid],tblÕppeainedHinded[Õppeaine],Arvutused!$C18,tblÕppeainedHinded[Tüüp],Arvutused!AI$5)*Sätted!K21,"") ->  | AJ18: 0 | AK18: =SUMIFS(Sätted!E21:K21,Arvutused!AC18:AI18,">0") -> 0
C19: =IF(Sätted!C22="","",Sätted!C22) ->  | AC19: =IFERROR(AVERAGEIFS(tblÕppeainedHinded[Punktid],tblÕppeainedHinded[Õppeaine],Arvutused!$C19,tblÕppeainedHinded[Tüüp],Arvutused!AC$5)*Sätted!E22,"") ->  | AD19: =IFERROR(AVERAGEIFS(tblÕppeainedHinded[Punktid],tblÕppeainedHinded[Õppeaine],Arvutused!$C19,tblÕppeainedHinded[Tüüp],Arvutused!AD$5)*Sätted!F22,"") ->  | AE19: =IFERROR(AVERAGEIFS(tblÕppeainedHinded[Punktid],tblÕppeainedHinded[Õppeaine],Arvutused!$C19,tblÕppeainedHinded[Tüüp],Arvutused!AE$5)*Sätted!G22,"") ->  | AF19: =IFERROR(AVERAGEIFS(tblÕppeainedHinded[Punktid],tblÕppeainedHinded[Õppeaine],Arvutused!$C19,tblÕppeainedHinded[Tüüp],Arvutused!AF$5)*Sätted!H22,"") ->  | AG19: =IFERROR(AVERAGEIFS(tblÕppeainedHinded[Punktid],tblÕppeainedHinded[Õppeaine],Arvutused!$C19,tblÕppeainedHinded[Tüüp],Arvutused!AG$5)*Sätted!I22,"") ->  | AH19: =IFERROR(AVERAGEIFS(tblÕppeainedHinded[Punktid],tblÕppeainedHinded[Õppeaine],Arvutused!$C19,tblÕppeainedHinded[Tüüp],Arvutused!AH$5)*Sätted!J22,"") ->  | AI19: =IFERROR(AVERAGEIFS(tblÕppeainedHinded[Punktid],tblÕppeainedHinded[Õppeaine],Arvutused!$C19,tblÕppeainedHinded[Tüüp],Arvutused!AI$5)*Sätted!K22,"") ->  | AJ19: 0 | AK19: =SUMIFS(Sätted!E22:K22,Arvutused!AC19:AI19,">0") -> 0
C20: =IF(Sätted!C23="","",Sätted!C23) ->  | AC20: =IFERROR(AVERAGEIFS(tblÕppeainedHinded[Punktid],tblÕppeainedHinded[Õppeaine],Arvutused!$C20,tblÕppeainedHinded[Tüüp],Arvutused!AC$5)*Sätted!E23,"") ->  | AD20: =IFERROR(AVERAGEIFS(tblÕppeainedHinded[Punktid],tblÕppeainedHinded[Õppeaine],Arvutused!$C20,tblÕppeainedHinded[Tüüp],Arvutused!AD$5)*Sätted!F23,"") ->  | AE20: =IFERROR(AVERAGEIFS(tblÕppeainedHinded[Punktid],tblÕppeainedHinded[Õppeaine],Arvutused!$C20,tblÕppeainedHinded[Tüüp],Arvutused!AE$5)*Sätted!G23,"") ->  | AF20: =IFERROR(AVERAGEIFS(tblÕppeainedHinded[Punktid],tblÕppeainedHinded[Õppeaine],Arvutused!$C20,tblÕppeainedHinded[Tüüp],Arvutused!AF$5)*Sätted!H23,"") ->  | AG20: =IFERROR(AVERAGEIFS(tblÕppeainedHinded[Punktid],tblÕppeainedHinded[Õppeaine],Arvutused!$C20,tblÕppeainedHinded[Tüüp],Arvutused!AG$5)*Sätted!I23,"") ->  | AH20: =IFERROR(AVERAGEIFS(tblÕppeainedHinded[Punktid],tblÕppeainedHinded[Õppeaine],Arvutused!$C20,tblÕppeainedHinded[Tüüp],Arvutused!AH$5)*Sätted!J23,"") ->  | AI20: =IFERROR(AVERAGEIFS(tblÕppeainedHinded[Punktid],tblÕppeainedHinded[Õppeaine],Arvutused!$C20,tblÕppeainedHinded[Tüüp],Arvutused!AI$5)*Sätted!K23,"") ->  | AJ20: 0 | AK20: =SUMIFS(Sätted!E23:K23,Arvutused!AC20:AI20,">0") -> 0
C21: =IF(Sätted!C24="","",Sätted!C24) ->  | AC21: =IFERROR(AVERAGEIFS(tblÕppeainedHinded[Punktid],tblÕppeainedHinded[Õppeaine],Arvutused!$C21,tblÕppeainedHinded[Tüüp],Arvutused!AC$5)*Sätted!E24,"") ->  | AD21: =IFERROR(AVERAGEIFS(tblÕppeainedHinded[Punktid],tblÕppeainedHinded[Õppeaine],Arvutused!$C21,tblÕppeainedHinded[Tüüp],Arvutused!AD$5)*Sätted!F24,"") ->  | AE21: =IFERROR(AVERAGEIFS(tblÕppeainedHinded[Punktid],tblÕppeainedHinded[Õppeaine],Arvutused!$C21,tblÕppeainedHinded[Tüüp],Arvutused!AE$5)*Sätted!G24,"") ->  | AF21: =IFERROR(AVERAGEIFS(tblÕppeainedHinded[Punktid],tblÕppeainedHinded[Õppeaine],Arvutused!$C21,tblÕppeainedHinded[Tüüp],Arvutused!AF$5)*Sätted!H24,"") ->  | AG21: =IFERROR(AVERAGEIFS(tblÕppeainedHinded[Punktid],tblÕppeainedHinded[Õppeaine],Arvutused!$C21,tblÕppeainedHinded[Tüüp],Arvutused!AG$5)*Sätted!I24,"") ->  | AH21: =IFERROR(AVERAGEIFS(tblÕppeainedHinded[Punktid],tblÕppeainedHinded[Õppeaine],Arvutused!$C21,tblÕppeainedHinded[Tüüp],Arvutused!AH$5)*Sätted!J24,"") ->  | AI21: =IFERROR(AVERAGEIFS(tblÕppeainedHinded[Punktid],tblÕppeainedHinded[Õppeaine],Arvutused!$C21,tblÕppeainedHinded[Tüüp],Arvutused!AI$5)*Sätted!K24,"") ->  | AJ21: 0 | AK21: =SUMIFS(Sätted!E24:K24,Arvutused!AC21:AI21,">0") -> 0
C22: =IF(Sätted!C25="","",Sätted!C25) ->  | AC22: =IFERROR(AVERAGEIFS(tblÕppeainedHinded[Punktid],tblÕppeainedHinded[Õppeaine],Arvutused!$C22,tblÕppeainedHinded[Tüüp],Arvutused!AC$5)*Sätted!E25,"") ->  | AD22: =IFERROR(AVERAGEIFS(tblÕppeainedHinded[Punktid],tblÕppeainedHinded[Õppeaine],Arvutused!$C22,tblÕppeainedHinded[Tüüp],Arvutused!AD$5)*Sätted!F25,"") ->  | AE22: =IFERROR(AVERAGEIFS(tblÕppeainedHinded[Punktid],tblÕppeainedHinded[Õppeaine],Arvutused!$C22,tblÕppeainedHinded[Tüüp],Arvutused!AE$5)*Sätted!G25,"") ->  | AF22: =IFERROR(AVERAGEIFS(tblÕppeainedHinded[Punktid],tblÕppeainedHinded[Õppeaine],Arvutused!$C22,tblÕppeainedHinded[Tüüp],Arvutused!AF$5)*Sätted!H25,"") ->  | AG22: =IFERROR(AVERAGEIFS(tblÕppeainedHinded[Punktid],tblÕppeainedHinded[Õppeaine],Arvutused!$C22,tblÕppeainedHinded[Tüüp],Arvutused!AG$5)*Sätted!I25,"") ->  | AH22: =IFERROR(AVERAGEIFS(tblÕppeainedHinded[Punktid],tblÕppeainedHinded[Õppeaine],Arvutused!$C22,tblÕppeainedHinded[Tüüp],Arvutused!AH$5)*Sätted!J25,"") ->  | AI22: =IFERROR(AVERAGEIFS(tblÕppeainedHinded[Punktid],tblÕppeainedHinded[Õppeaine],Arvutused!$C22,tblÕppeainedHinded[Tüüp],Arvutused!AI$5)*Sätted!K25,"") ->  | AJ22: 0 | AK22: =SUMIFS(Sätted!E25:K25,Arvutused!AC22:AI22,">0") -> 0
C23: =IF(Sätted!C26="","",Sätted!C26) ->  | AC23: =IFERROR(AVERAGEIFS(tblÕppeainedHinded[Punktid],tblÕppeainedHinded[Õppeaine],Arvutused!$C23,tblÕppeainedHinded[Tüüp],Arvutused!AC$5)*Sätted!E26,"") ->  | AD23: =IFERROR(AVERAGEIFS(tblÕppeainedHinded[Punktid],tblÕppeainedHinded[Õppeaine],Arvutused!$C23,tblÕppeainedHinded[Tüüp],Arvutused!AD$5)*Sätted!F26,"") ->  | AE23: =IFERROR(AVERAGEIFS(tblÕppeainedHinded[Punktid],tblÕppeainedHinded[Õppeaine],Arvutused!$C23,tblÕppeainedHinded[Tüüp],Arvutused!AE$5)*Sätted!G26,"") ->  | AF23: =IFERROR(AVERAGEIFS(tblÕppeainedHinded[Punktid],tblÕppeainedHinded[Õppeaine],Arvutused!$C23,tblÕppeainedHinded[Tüüp],Arvutused!AF$5)*Sätted!H26,"") ->  | AG23: =IFERROR(AVERAGEIFS(tblÕppeainedHinded[Punktid],tblÕppeainedHinded[Õppeaine],Arvutused!$C23,tblÕppeainedHinded[Tüüp],Arvutused!AG$5)*Sätted!I26,"") ->  | AH23: =IFERROR(AVERAGEIFS(tblÕppeainedHinded[Punktid],tblÕppeainedHinded[Õppeaine],Arvutused!$C23,tblÕppeainedHinded[Tüüp],Arvutused!AH$5)*Sätted!J26,"") ->  | AI23: =IFERROR(AVERAGEIFS(tblÕppeainedHinded[Punktid],tblÕppeainedHinded[Õppeaine],Arvutused!$C23,tblÕppeainedHinded[Tüüp],Arvutused!AI$5)*Sätted!K26,"") ->  | AJ23: 0 | AK23: =SUMIFS(Sätted!E26:K26,Arvutused!AC23:AI23,">0") -> 0
C24: =IF(Sätted!C27="","",Sätted!C27) ->  | AC24: =IFERROR(AVERAGEIFS(tblÕppeainedHinded[Punktid],tblÕppeainedHinded[Õppeaine],Arvutused!$C24,tblÕppeainedHinded[Tüüp],Arvutused!AC$5)*Sätted!E27,"") ->  | AD24: =IFERROR(AVERAGEIFS(tblÕppeainedHinded[Punktid],tblÕppeainedHinded[Õppeaine],Arvutused!$C24,tblÕppeainedHinded[Tüüp],Arvutused!AD$5)*Sätted!F27,"") ->  | AE24: =IFERROR(AVERAGEIFS(tblÕppeainedHinded[Punktid],tblÕppeainedHinded[Õppeaine],Arvutused!$C24,tblÕppeainedHinded[Tüüp],Arvutused!AE$5)*Sätted!G27,"") ->  | AF24: =IFERROR(AVERAGEIFS(tblÕppeainedHinded[Punktid],tblÕppeainedHinded[Õppeaine],Arvutused!$C24,tblÕppeainedHinded[Tüüp],Arvutused!AF$5)*Sätted!H27,"") ->  | AG24: =IFERROR(AVERAGEIFS(tblÕppeainedHinded[Punktid],tblÕppeainedHinded[Õppeaine],Arvutused!$C24,tblÕppeainedHinded[Tüüp],Arvutused!AG$5)*Sätted!I27,"") ->  | AH24: =IFERROR(AVERAGEIFS(tblÕppeainedHinded[Punktid],tblÕppeainedHinded[Õppeaine],Arvutused!$C24,tblÕppeainedHinded[Tüüp],Arvutused!AH$5)*Sätted!J27,"") ->  | AI24: =IFERROR(AVERAGEIFS(tblÕppeainedHinded[Punktid],tblÕppeainedHinded[Õppeaine],Arvutused!$C24,tblÕppeainedHinded[Tüüp],Arvutused!AI$5)*Sätted!K27,"") ->  | AJ24: 0 | AK24: =SUMIFS(Sätted!E27:K27,Arvutused!AC24:AI24,">0") -> 0
C25: =IF(Sätted!C28="","",Sätted!C28) ->  | AC25: =IFERROR(AVERAGEIFS(tblÕppeainedHinded[Punktid],tblÕppeainedHinded[Õppeaine],Arvutused!$C25,tblÕppeainedHinded[Tüüp],Arvutused!AC$5)*Sätted!E28,"") ->  | AD25: =IFERROR(AVERAGEIFS(tblÕppeainedHinded[Punktid],tblÕppeainedHinded[Õppeaine],Arvutused!$C25,tblÕppeainedHinded[Tüüp],Arvutused!AD$5)*Sätted!F28,"") ->  | AE25: =IFERROR(AVERAGEIFS(tblÕppeainedHinded[Punktid],tblÕppeainedHinded[Õppeaine],Arvutused!$C25,tblÕppeainedHinded[Tüüp],Arvutused!AE$5)*Sätted!G28,"") ->  | AF25: =IFERROR(AVERAGEIFS(tblÕppeainedHinded[Punktid],tblÕppeainedHinded[Õppeaine],Arvutused!$C25,tblÕppeainedHinded[Tüüp],Arvutused!AF$5)*Sätted!H28,"") ->  | AG25: =IFERROR(AVERAGEIFS(tblÕppeainedHinded[Punktid],tblÕppeainedHinded[Õppeaine],Arvutused!$C25,tblÕppeainedHinded[Tüüp],Arvutused!AG$5)*Sätted!I28,"") ->  | AH25: =IFERROR(AVERAGEIFS(tblÕppeainedHinded[Punktid],tblÕppeainedHinded[Õppeaine],Arvutused!$C25,tblÕppeainedHinded[Tüüp],Arvutused!AH$5)*Sätted!J28,"") ->  | AI25: =IFERROR(AVERAGEIFS(tblÕppeainedHinded[Punktid],tblÕppeainedHinded[Õppeaine],Arvutused!$C25,tblÕppeainedHinded[Tüüp],Arvutused!AI$5)*Sätted!K28,"") ->  | AJ25: 0 | AK25: =SUMIFS(Sätted!E28:K28,Arvutused!AC25:AI25,">0") -> 0
C26: =IF(Sätted!C29="","",Sätted!C29) ->  | AC26: =IFERROR(AVERAGEIFS(tblÕppeainedHinded[Punktid],tblÕppeainedHinded[Õppeaine],Arvutused!$C26,tblÕppeainedHinded[Tüüp],Arvutused!AC$5)*Sätted!E29,"") ->  | AD26: =IFERROR(AVERAGEIFS(tblÕppeainedHinded[Punktid],tblÕppeainedHinded[Õppeaine],Arvutused!$C26,tblÕppeainedHinded[Tüüp],Arvutused!AD$5)*Sätted!F29,"") ->  | AE26: =IFERROR(AVERAGEIFS(tblÕppeainedHinded[Punktid],tblÕppeainedHinded[Õppeaine],Arvutused!$C26,tblÕppeainedHinded[Tüüp],Arvutused!AE$5)*Sätted!G29,"") ->  | AF26: =IFERROR(AVERAGEIFS(tblÕppeainedHinded[Punktid],tblÕppeainedHinded[Õppeaine],Arvutused!$C26,tblÕppeainedHinded[Tüüp],Arvutused!AF$5)*Sätted!H29,"") ->  | AG26: =IFERROR(AVERAGEIFS(tblÕppeainedHinded[Punktid],tblÕppeainedHinded[Õppeaine],Arvutused!$C26,tblÕppeainedHinded[Tüüp],Arvutused!AG$5)*Sätted!I29,"") ->  | AH26: =IFERROR(AVERAGEIFS(tblÕppeainedHinded[Punktid],tblÕppeainedHinded[Õppeaine],Arvutused!$C26,tblÕppeainedHinded[Tüüp],Arvutused!AH$5)*Sätted!J29,"") ->  | AI26: =IFERROR(AVERAGEIFS(tblÕppeainedHinded[Punktid],tblÕppeainedHinded[Õppeaine],Arvutused!$C26,tblÕppeainedHinded[Tüüp],Arvutused!AI$5)*Sätted!K29,"") ->  | AJ26: 0 | AK26: =SUMIFS(Sätted!E29:K29,Arvutused!AC26:AI26,">0") -> 0
C27: =IF(Sätted!C30="","",Sätted!C30) ->  | AC27: =IFERROR(AVERAGEIFS(tblÕppeainedHinded[Punktid],tblÕppeainedHinded[Õppeaine],Arvutused!$C27,tblÕppeainedHinded[Tüüp],Arvutused!AC$5)*Sätted!E30,"") ->  | AD27: =IFERROR(AVERAGEIFS(tblÕppeainedHinded[Punktid],tblÕppeainedHinded[Õppeaine],Arvutused!$C27,tblÕppeainedHinded[Tüüp],Arvutused!AD$5)*Sätted!F30,"") ->  | AE27: =IFERROR(AVERAGEIFS(tblÕppeainedHinded[Punktid],tblÕppeainedHinded[Õppeaine],Arvutused!$C27,tblÕppeainedHinded[Tüüp],Arvutused!AE$5)*Sätted!G30,"") ->  | AF27: =IFERROR(AVERAGEIFS(tblÕppeainedHinded[Punktid],tblÕppeainedHinded[Õppeaine],Arvutused!$C27,tblÕppeainedHinded[Tüüp],Arvutused!AF$5)*Sätted!H30,"") ->  | AG27: =IFERROR(AVERAGEIFS(tblÕppeainedHinded[Punktid],tblÕppeainedHinded[Õppeaine],Arvutused!$C27,tblÕppeainedHinded[Tüüp],Arvutused!AG$5)*Sätted!I30,"") ->  | AH27: =IFERROR(AVERAGEIFS(tblÕppeainedHinded[Punktid],tblÕppeainedHinded[Õppeaine],Arvutused!$C27,tblÕppeainedHinded[Tüüp],Arvutused!AH$5)*Sätted!J30,"") ->  | AI27: =IFERROR(AVERAGEIFS(tblÕppeainedHinded[Punktid],tblÕppeainedHinded[Õppeaine],Arvutused!$C27,tblÕppeainedHinded[Tüüp],Arvutused!AI$5)*Sätted!K30,"") ->  | AJ27: 0 | AK27: =SUMIFS(Sätted!E30:K30,Arvutused!AC27:AI27,">0") -> 0
C28: =IF(Sätted!C31="","",Sätted!C31) ->  | AC28: =IFERROR(AVERAGEIFS(tblÕppeainedHinded[Punktid],tblÕppeainedHinded[Õppeaine],Arvutused!$C28,tblÕppeainedHinded[Tüüp],Arvutused!AC$5)*Sätted!E31,"") ->  | AD28: =IFERROR(AVERAGEIFS(tblÕppeainedHinded[Punktid],tblÕppeainedHinded[Õppeaine],Arvutused!$C28,tblÕppeainedHinded[Tüüp],Arvutused!AD$5)*Sätted!F31,"") ->  | AE28: =IFERROR(AVERAGEIFS(tblÕppeainedHinded[Punktid],tblÕppeainedHinded[Õppeaine],Arvutused!$C28,tblÕppeainedHinded[Tüüp],Arvutused!AE$5)*Sätted!G31,"") ->  | AF28: =IFERROR(AVERAGEIFS(tblÕppeainedHinded[Punktid],tblÕppeainedHinded[Õppeaine],Arvutused!$C28,tblÕppeainedHinded[Tüüp],Arvutused!AF$5)*Sätted!H31,"") ->  | AG28: =IFERROR(AVERAGEIFS(tblÕppeainedHinded[Punktid],tblÕppeainedHinded[Õppeaine],Arvutused!$C28,tblÕppeainedHinded[Tüüp],Arvutused!AG$5)*Sätted!I31,"") ->  | AH28: =IFERROR(AVERAGEIFS(tblÕppeainedHinded[Punktid],tblÕppeainedHinded[Õppeaine],Arvutused!$C28,tblÕppeainedHinded[Tüüp],Arvutused!AH$5)*Sätted!J31,"") ->  | AI28: =IFERROR(AVERAGEIFS(tblÕppeainedHinded[Punktid],tblÕppeainedHinded[Õppeaine],Arvutused!$C28,tblÕppeainedHinded[Tüüp],Arvutused!AI$5)*Sätted!K31,"") ->  | AJ28: 0 | AK28: =SUMIFS(Sätted!E31:K31,Arvutused!AC28:AI28,">0") -> 0
C29: =IF(Sätted!C32="","",Sätted!C32) ->  | AC29: =IFERROR(AVERAGEIFS(tblÕppeainedHinded[Punktid],tblÕppeainedHinded[Õppeaine],Arvutused!$C29,tblÕppeainedHinded[Tüüp],Arvutused!AC$5)*Sätted!E32,"") ->  | AD29: =IFERROR(AVERAGEIFS(tblÕppeainedHinded[Punktid],tblÕppeainedHinded[Õppeaine],Arvutused!$C29,tblÕppeainedHinded[Tüüp],Arvutused!AD$5)*Sätted!F32,"") ->  | AE29: =IFERROR(AVERAGEIFS(tblÕppeainedHinded[Punktid],tblÕppeainedHinded[Õppeaine],Arvutused!$C29,tblÕppeainedHinded[Tüüp],Arvutused!AE$5)*Sätted!G32,"") ->  | AF29: =IFERROR(AVERAGEIFS(tblÕppeainedHinded[Punktid],tblÕppeainedHinded[Õppeaine],Arvutused!$C29,tblÕppeainedHinded[Tüüp],Arvutused!AF$5)*Sätted!H32,"") ->  | AG29: =IFERROR(AVERAGEIFS(tblÕppeainedHinded[Punktid],tblÕppeainedHinded[Õppeaine],Arvutused!$C29,tblÕppeainedHinded[Tüüp],Arvutused!AG$5)*Sätted!I32,"") ->  | AH29: =IFERROR(AVERAGEIFS(tblÕppeainedHinded[Punktid],tblÕppeainedHinded[Õppeaine],Arvutused!$C29,tblÕppeainedHinded[Tüüp],Arvutused!AH$5)*Sätted!J32,"") ->  | AI29: =IFERROR(AVERAGEIFS(tblÕppeainedHinded[Punktid],tblÕppeainedHinded[Õppeaine],Arvutused!$C29,tblÕppeainedHinded[Tüüp],Arvutused!AI$5)*Sätted!K32,"") ->  | AJ29: 0 | AK29: =SUMIFS(Sätted!E32:K32,Arvutused!AC29:AI29,">0") -> 0
C30: =IF(Sätted!C33="","",Sätted!C33) ->  | AC30: =IFERROR(AVERAGEIFS(tblÕppeainedHinded[Punktid],tblÕppeainedHinded[Õppeaine],Arvutused!$C30,tblÕppeainedHinded[Tüüp],Arvutused!AC$5)*Sätted!E33,"") ->  | AD30: =IFERROR(AVERAGEIFS(tblÕppeainedHinded[Punktid],tblÕppeainedHinded[Õppeaine],Arvutused!$C30,tblÕppeainedHinded[Tüüp],Arvutused!AD$5)*Sätted!F33,"") ->  | AE30: =IFERROR(AVERAGEIFS(tblÕppeainedHinded[Punktid],tblÕppeainedHinded[Õppeaine],Arvutused!$C30,tblÕppeainedHinded[Tüüp],Arvutused!AE$5)*Sätted!G33,"") ->  | AF30: =IFERROR(AVERAGEIFS(tblÕppeainedHinded[Punktid],tblÕppeainedHinded[Õppeaine],Arvutused!$C30,tblÕppeainedHinded[Tüüp],Arvutused!AF$5)*Sätted!H33,"") ->  | AG30: =IFERROR(AVERAGEIFS(tblÕppeainedHinded[Punktid],tblÕppeainedHinded[Õppeaine],Arvutused!$C30,tblÕppeainedHinded[Tüüp],Arvutused!AG$5)*Sätted!I33,"") ->  | AH30: =IFERROR(AVERAGEIFS(tblÕppeainedHinded[Punktid],tblÕppeainedHinded[Õppeaine],Arvutused!$C30,tblÕppeainedHinded[Tüüp],Arvutused!AH$5)*Sätted!J33,"") ->  | AI30: =IFERROR(AVERAGEIFS(tblÕppeainedHinded[Punktid],tblÕppeainedHinded[Õppeaine],Arvutused!$C30,tblÕppeainedHinded[Tüüp],Arvutused!AI$5)*Sätted!K33,"") ->  | AJ30: 0 | AK30: =SUMIFS(Sätted!E33:K33,Arvutused!AC30:AI30,">0") -> 0
B33: 1 | C33: ='Punktide jälgimine'!C4&COUNTIF('Punktide jälgimine'!$C$4:C4,'Punktide jälgimine'!C4) -> Prantsuse keel1
B34: 2 | C34: ='Punktide jälgimine'!C5&COUNTIF('Punktide jälgimine'!$C$4:C5,'Punktide jälgimine'!C5) -> Programmeerimine Java-keeles1
B35: 3 | C35: ='Punktide jälgimine'!C6&COUNTIF('Punktide jälgimine'!$C$4:C6,'Punktide jälgimine'!C6) -> Hispaania keel1
B36: 4 | C36: ='Punktide jälgimine'!C7&COUNTIF('Punktide jälgimine'!$C$4:C7,'Punktide jälgimine'!C7) -> Teoreetiline füüsika1
B37: 5 | C37: ='Punktide jälgimine'!C8&COUNTIF('Punktide jälgimine'!$C$4:C8,'Punktide jälgimine'!C8) -> Prantsuse keel2
B38: 6 | C38: ='Punktide jälgimine'!C9&COUNTIF('Punktide jälgimine'!$C$4:C9,'Punktide jälgimine'!C9) -> Prantsuse keel3
B39: 7 | C39: ='Punktide jälgimine'!C10&COUNTIF('Punktide jälgimine'!$C$4:C10,'Punktide jälgimine'!C10) -> Kirjand1
B40: 8 | C40: ='Punktide jälgimine'!C11&COUNTIF('Punktide jälgimine'!$C$4:C11,'Punktide jälgimine'!C11) -> Matemaatika 11
B41: 9 | C41: ='Punktide jälgimine'!C12&COUNTIF('Punktide jälgimine'!$C$4:C12,'Punktide jälgimine'!C12) -> Matemaatika 21
B42: 10 | C42: ='Punktide jälgimine'!C13&COUNTIF('Punktide jälgimine'!$C$4:C14,'Punktide jälgimine'!C13) -> Matemaatika 12
B43: 11 | C43: ='Punktide jälgimine'!C14&COUNTIF('Punktide jälgimine'!$C$4:C14,'Punktide jälgimine'!C14) -> Matemaatika 22
B44: 12 | C44: ='Punktide jälgimine'!C15&COUNTIF('Punktide jälgimine'!$C$4:C15,'Punktide jälgimine'!C15) -> 0
B45: 13 | C45: ='Punktide jälgimine'!C16&COUNTIF('Punktide jälgimine'!$C$4:C16,'Punktide jälgimine'!C16) -> 0
B46: 14 | C46: ='Punktide jälgimine'!C17&COUNTIF('Punktide jälgimine'!$C$4:C17,'Punktide jälgimine'!C17) -> 0
B47: 15 | C47: ='Punktide jälgimine'!C18&COUNTIF('Punktide jälgimine'!$C$4:C18,'Punktide jälgimine'!C18) -> 0
B48: 16 | C48: ='Punktide jälgimine'!C19&COUNTIF('Punktide jälgimine'!$C$4:C19,'Punktide jälgimine'!C19) -> 0
B49: 17 | C49: ='Punktide jälgimine'!C20&COUNTIF('Punktide jälgimine'!$C$4:C20,'Punktide jälgimine'!C20) -> 0
B50: 18 | C50: ='Punktide jälgimine'!C21&COUNTIF('Punktide jälgimine'!$C$4:C21,'Punktide jälgimine'!C21) -> 0
B51: 19 | C51: ='Punktide jälgimine'!C22&COUNTIF('Punktide jälgimine'!$C$4:C22,'Punktide jälgimine'!C22) -> 0
B52: 20 | C52: ='Punktide jälgimine'!C23&COUNTIF('Punktide jälgimine'!$C$4:C23,'Punktide jälgimine'!C23) -> 0
B53: 21 | C53: ='Punktide jälgimine'!C24&COUNTIF('Punktide jälgimine'!$C$4:C24,'Punktide jälgimine'!C24) -> 0
B54: 22 | C54: ='Punktide jälgimine'!C25&COUNTIF('Punktide jälgimine'!$C$4:C25,'Punktide jälgimine'!C25) -> 0
B55: 23 | C55: ='Punktide jälgimine'!C26&COUNTIF('Punktide jälgimine'!$C$4:C26,'Punktide jälgimine'!C26) -> 0
B56: 24 | C56: ='Punktide jälgimine'!C27&COUNTIF('Punktide jälgimine'!$C$4:C27,'Punktide jälgimine'!C27) -> 0
B57: 25 | C57: ='Punktide jälgimine'!C28&COUNTIF('Punktide jälgimine'!$C$4:C28,'Punktide jälgimine'!C28) -> 0
B58: 26 | C58: ='Punktide jälgimine'!C29&COUNTIF('Punktide jälgimine'!$C$4:C29,'Punktide jälgimine'!C29) -> 0
B59: 27 | C59: ='Punktide jälgimine'!C30&COUNTIF('Punktide jälgimine'!$C$4:C30,'Punktide jälgimine'!C30) -> 0
B60: 28 | C60: ='Punktide jälgimine'!C31&COUNTIF('Punktide jälgimine'!$C$4:C31,'Punktide jälgimine'!C31) -> 0
B61: 29 | C61: ='Punktide jälgimine'!C32&COUNTIF('Punktide jälgimine'!$C$4:C32,'Punktide jälgimine'!C32) -> 0
B62: 30 | C62: ='Punktide jälgimine'!C33&COUNTIF('Punktide jälgimine'!$C$4:C33,'Punktide jälgimine'!C33) -> 0
B63: 31 | C63: ='Punktide jälgimine'!C34&COUNTIF('Punktide jälgimine'!$C$4:C34,'Punktide jälgimine'!C34) -> 0
B64: 32 | C64: ='Punktide jälgimine'!C35&COUNTIF('Punktide jälgimine'!$C$4:C35,'Punktide jälgimine'!C35) -> 0
B65: 33 | C65: ='Punktide jälgimine'!C36&COUNTIF('Punktide jälgimine'!$C$4:C36,'Punktide jälgimine'!C36) -> 0
B66: 34 | C66: ='Punktide jälgimine'!C37&COUNTIF('Punktide jälgimine'!$C$4:C37,'Punktide jälgimine'!C37) -> 0
B67: 35 | C67: ='Punktide jälgimine'!C38&COUNTIF('Punktide jälgimine'!$C$4:C38,'Punktide jälgimine'!C38) -> 0
B68: 36 | C68: ='Punktide jälgimine'!C39&COUNTIF('Punktide jälgimine'!$C$4:C39,'Punktide jälgimine'!C39) -> 0
B69: 37 | C69: ='Punktide jälgimine'!C40&COUNTIF('Punktide jälgimine'!$C$4:C40,'Punktide jälgimine'!C40) -> 0
B70: 38 | C70: ='Punktide jälgimine'!C41&COUNTIF('Punktide jälgimine'!$C$4:C41,'Punktide jälgimine'!C41) -> 0
B71: 39 | C71: ='Punktide jälgimine'!C42&COUNTIF('Punktide jälgimine'!$C$4:C42,'Punktide jälgimine'!C42) -> 0
B72: 40 | C72: ='Punktide jälgimine'!C43&COUNTIF('Punktide jälgimine'!$C$4:C43,'Punktide jälgimine'!C43) -> 0
B73: 41 | C73: ='Punktide jälgimine'!C44&COUNTIF('Punktide jälgimine'!$C$4:C44,'Punktide jälgimine'!C44) -> 0
B74: 42 | C74: ='Punktide jälgimine'!C45&COUNTIF('Punktide jälgimine'!$C$4:C45,'Punktide jälgimine'!C45) -> 0
B75: 43 | C75: ='Punktide jälgimine'!C46&COUNTIF('Punktide jälgimine'!$C$4:C46,'Punktide jälgimine'!C46) -> 0
B76: 44 | C76: ='Punktide jälgimine'!C47&COUNTIF('Punktide jälgimine'!$C$4:C47,'Punktide jälgimine'!C47) -> 0
B77: 45 | C77: ='Punktide jälgimine'!C48&COUNTIF('Punktide jälgimine'!$C$4:C48,'Punktide jälgimine'!C48) -> 0
B78: 46 | C78: ='Punktide jälgimine'!C49&COUNTIF('Punktide jälgimine'!$C$4:C49,'Punktide jälgimine'!C49) -> 0
B79: 47 | C79: ='Punktide jälgimine'!C50&COUNTIF('Punktide jälgimine'!$C$4:C50,'Punktide jälgimine'!C50) -> 0
B80: 48 | C80: ='Punktide jälgimine'!C51&COUNTIF('Punktide jälgimine'!$C$4:C51,'Punktide jälgimine'!C51) -> 0
B81: 49 | C81: ='Punktide jälgimine'!C52&COUNTIF('Punktide jälgimine'!$C$4:C52,'Punktide jälgimine'!C52) -> 0
B82: 50 | C82: ='Punktide jälgimine'!C53&COUNTIF('Punktide jälgimine'!$C$4:C53,'Punktide jälgimine'!C53) -> 0
B83: 51 | C83: ='Punktide jälgimine'!C54&COUNTIF('Punktide jälgimine'!$C$4:C54,'Punktide jälgimine'!C54) -> 0
B84: 52 | C84: ='Punktide jälgimine'!C55&COUNTIF('Punktide jälgimine'!$C$4:C55,'Punktide jälgimine'!C55) -> 0
B85: 53 | C85: ='Punktide jälgimine'!C56&COUNTIF('Punktide jälgimine'!$C$4:C56,'Punktide jälgimine'!C56) -> 0
B86: 54 | C86: ='Punktide jälgimine'!C57&COUNTIF('Punktide jälgimine'!$C$4:C57,'Punktide jälgimine'!C57) -> 0
B87: 55 | C87: ='Punktide jälgimine'!C58&COUNTIF('Punktide jälgimine'!$C$4:C58,'Punktide jälgimine'!C58) -> 0
B88: 56 | C88: ='Punktide jälgimine'!C59&COUNTIF('Punktide jälgimine'!$C$4:C59,'Punktide jälgimine'!C59) -> 0
B89: 57 | C89: ='Punktide jälgimine'!C60&COUNTIF('Punktide jälgimine'!$C$4:C60,'Punktide jälgimine'!C60) -> 0
B90: 58 | C90: ='Punktide jälgimine'!C61&COUNTIF('Punktide jälgimine'!$C$4:C61,'Punktide jälgimine'!C61) -> 0
B91: 59 | C91: ='Punktide jälgimine'!C62&COUNTIF('Punktide jälgimine'!$C$4:C62,'Punktide jälgimine'!C62) -> 0
B92: 60 | C92: ='Punktide jälgimine'!C63&COUNTIF('Punktide jälgimine'!$C$4:C63,'Punktide jälgimine'!C63) -> 0
B93: 61 | C93: ='Punktide jälgimine'!C64&COUNTIF('Punktide jälgimine'!$C$4:C64,'Punktide jälgimine'!C64) -> 0
B94: 62 | C94: ='Punktide jälgimine'!C65&COUNTIF('Punktide jälgimine'!$C$4:C65,'Punktide jälgimine'!C65) -> 0
B95: 63 | C95: ='Punktide jälgimine'!C66&COUNTIF('Punktide jälgimine'!$C$4:C66,'Punktide jälgimine'!C66) -> 0
B96: 64 | C96: ='Punktide jälgimine'!C67&COUNTIF('Punktide jälgimine'!$C$4:C67,'Punktide jälgimine'!C67) -> 0
B97: 65 | C97: ='Punktide jälgimine'!C68&COUNTIF('Punktide jälgimine'!$C$4:C68,'Punktide jälgimine'!C68) -> 0
B98: 66 | C98: ='Punktide jälgimine'!C69&COUNTIF('Punktide jälgimine'!$C$4:C69,'Punktide jälgimine'!C69) -> 0
B99: 67 | C99: ='Punktide jälgimine'!C70&COUNTIF('Punktide jälgimine'!$C$4:C70,'Punktide jälgimine'!C70) -> 0
B100: 68 | C100: ='Punktide jälgimine'!C71&COUNTIF('Punktide jälgimine'!$C$4:C71,'Punktide jälgimine'!C71) -> 0
B101: 69 | C101: ='Punktide jälgimine'!C72&COUNTIF('Punktide jälgimine'!$C$4:C72,'Punktide jälgimine'!C72) -> 0
B102: 70 | C102: ='Punktide jälgimine'!C73&COUNTIF('Punktide jälgimine'!$C$4:C73,'Punktide jälgimine'!C73) -> 0
B103: 71 | C103: ='Punktide jälgimine'!C74&COUNTIF('Punktide jälgimine'!$C$4:C74,'Punktide jälgimine'!C74) -> 0
B104: 72 | C104: ='Punktide jälgimine'!C75&COUNTIF('Punktide jälgimine'!$C$4:C75,'Punktide jälgimine'!C75) -> 0
B105: 73 | C105: ='Punktide jälgimine'!C76&COUNTIF('Punktide jälgimine'!$C$4:C76,'Punktide jälgimine'!C76) -> 0
B106: 74 | C106: ='Punktide jälgimine'!C77&COUNTIF('Punktide jälgimine'!$C$4:C77,'Punktide jälgimine'!C77) -> 0
B107: 75 | C107: ='Punktide jälgimine'!C78&COUNTIF('Punktide jälgimine'!$C$4:C78,'Punktide jälgimine'!C78) -> 0
B108: 76 | C108: ='Punktide jälgimine'!C79&COUNTIF('Punktide jälgimine'!$C$4:C79,'Punktide jälgimine'!C79) -> 0
B109: 77 | C109: ='Punktide jälgimine'!C80&COUNTIF('Punktide jälgimine'!$C$4:C80,'Punktide jälgimine'!C80) -> 0
B110: 78 | C110: ='Punktide jälgimine'!C81&COUNTIF('Punktide jälgimine'!$C$4:C81,'Punktide jälgimine'!C81) -> 0
B111: 79 | C111: ='Punktide jälgimine'!C82&COUNTIF('Punktide jälgimine'!$C$4:C82,'Punktide jälgimine'!C82) -> 0
B112: 80 | C112: ='Punktide jälgimine'!C83&COUNTIF('Punktide jälgimine'!$C$4:C83,'Punktide jälgimine'!C83) -> 0
B113: 81 | C113: ='Punktide jälgimine'!C84&COUNTIF('Punktide jälgimine'!$C$4:C84,'Punktide jälgimine'!C84) -> 0
B114: 82 | C114: ='Punktide jälgimine'!C85&COUNTIF('Punktide jälgimine'!$C$4:C85,'Punktide jälgimine'!C85) -> 0
B115: 83 | C115: ='Punktide jälgimine'!C86&COUNTIF('Punktide jälgimine'!$C$4:C86,'Punktide jälgimine'!C86) -> 0
B116: 84 | C116: ='Punktide jälgimine'!C87&COUNTIF('Punktide jälgimine'!$C$4:C87,'Punktide jälgimine'!C87) -> 0
B117: 85 | C117: ='Punktide jälgimine'!C88&COUNTIF('Punktide jälgimine'!$C$4:C88,'Punktide jälgimine'!C88) -> 0
B118: 86 | C118: ='Punktide jälgimine'!C89&COUNTIF('Punktide jälgimine'!$C$4:C89,'Punktide jälgimine'!C89) -> 0
B119: 87 | C119: ='Punktide jälgimine'!C90&COUNTIF('Punktide jälgimine'!$C$4:C90,'Punktide jälgimine'!C90) -> 0
B120: 88 | C120: ='Punktide jälgimine'!C91&COUNTIF('Punktide jälgimine'!$C$4:C91,'Punktide jälgimine'!C91) -> 0
B121: 89 | C121: ='Punktide jälgimine'!C92&COUNTIF('Punktide jälgimine'!$C$4:C92,'Punktide jälgimine'!C92) -> 0
B122: 90 | C122: ='Punktide jälgimine'!C93&COUNTIF('Punktide jälgimine'!$C$4:C93,'Punktide jälgimine'!C93) -> 0
B123: 91 | C123: ='Punktide jälgimine'!C94&COUNTIF('Punktide jälgimine'!$C$4:C94,'Punktide jälgimine'!C94) -> 0
B124: 92 | C124: ='Punktide jälgimine'!C95&COUNTIF('Punktide jälgimine'!$C$4:C95,'Punktide jälgimine'!C95) -> 0
B125: 93 | C125: ='Punktide jälgimine'!C96&COUNTIF('Punktide jälgimine'!$C$4:C96,'Punktide jälgimine'!C96) -> 0
B126: 94 | C126: ='Punktide jälgimine'!C97&COUNTIF('Punktide jälgimine'!$C$4:C97,'Punktide jälgimine'!C97) -> 0
B127: 95 | C127: ='Punktide jälgimine'!C98&COUNTIF('Punktide jälgimine'!$C$4:C98,'Punktide jälgimine'!C98) -> 0
B128: 96 | C128: ='Punktide jälgimine'!C99&COUNTIF('Punktide jälgimine'!$C$4:C99,'Punktide jälgimine'!C99) -> 0
B129: 97 | C129: ='Punktide jälgimine'!C100&COUNTIF('Punktide jälgimine'!$C$4:C100,'Punktide jälgimine'!C100) -> 0
B130: 98 | C130: ='Punktide jälgimine'!C101&COUNTIF('Punktide jälgimine'!$C$4:C101,'Punktide jälgimine'!C101) -> 0
B131: 99 | C131: ='Punktide jälgimine'!C102&COUNTIF('Punktide jälgimine'!$C$4:C102,'Punktide jälgimine'!C102) -> 0
B132: 100 | C132: ='Punktide jälgimine'!C103&COUNTIF('Punktide jälgimine'!$C$4:C103,'Punktide jälgimine'!C103) -> 0
B133: 101 | C133: ='Punktide jälgimine'!C104&COUNTIF('Punktide jälgimine'!$C$4:C104,'Punktide jälgimine'!C104) -> 0
B134: 102 | C134: ='Punktide jälgimine'!C105&COUNTIF('Punktide jälgimine'!$C$4:C105,'Punktide jälgimine'!C105) -> 0
B135: 103 | C135: ='Punktide jälgimine'!C106&COUNTIF('Punktide jälgimine'!$C$4:C106,'Punktide jälgimine'!C106) -> 0
B136: 104 | C136: ='Punktide jälgimine'!C107&COUNTIF('Punktide jälgimine'!$C$4:C107,'Punktide jälgimine'!C107) -> 0
B137: 105 | C137: ='Punktide jälgimine'!C108&COUNTIF('Punktide jälgimine'!$C$4:C108,'Punktide jälgimine'!C108) -> 0
B138: 106 | C138: ='Punktide jälgimine'!C109&COUNTIF('Punktide jälgimine'!$C$4:C109,'Punktide jälgimine'!C109) -> 0
B139: 107 | C139: ='Punktide jälgimine'!C110&COUNTIF('Punktide jälgimine'!$C$4:C110,'Punktide jälgimine'!C110) -> 0
B140: 108 | C140: ='Punktide jälgimine'!C111&COUNTIF('Punktide jälgimine'!$C$4:C111,'Punktide jälgimine'!C111) -> 0
B141: 109 | C141: ='Punktide jälgimine'!C112&COUNTIF('Punktide jälgimine'!$C$4:C112,'Punktide jälgimine'!C112) -> 0
B142: 110 | C142: ='Punktide jälgimine'!C113&COUNTIF('Punktide jälgimine'!$C$4:C113,'Punktide jälgimine'!C113) -> 0
B143: 111 | C143: ='Punktide jälgimine'!C114&COUNTIF('Punktide jälgimine'!$C$4:C114,'Punktide jälgimine'!C114) -> 0
B144: 112 | C144: ='Punktide jälgimine'!C115&COUNTIF('Punktide jälgimine'!$C$4:C115,'Punktide jälgimine'!C115) -> 0
B145: 113 | C145: ='Punktide jälgimine'!C116&COUNTIF('Punktide jälgimine'!$C$4:C116,'Punktide jälgimine'!C116) -> 0
B146: 114 | C146: ='Punktide jälgimine'!C117&COUNTIF('Punktide jälgimine'!$C$4:C117,'Punktide jälgimine'!C117) -> 0
B147: 115 | C147: ='Punktide jälgimine'!C118&COUNTIF('Punktide jälgimine'!$C$4:C118,'Punktide jälgimine'!C118) -> 0
B148: 116 | C148: ='Punktide jälgimine'!C119&COUNTIF('Punktide jälgimine'!$C$4:C119,'Punktide jälgimine'!C119) -> 0
B149: 117 | C149: ='Punktide jälgimine'!C120&COUNTIF('Punktide jälgimine'!$C$4:C120,'Punktide jälgimine'!C120) -> 0
B150: 118 | C150: ='Punktide jälgimine'!C121&COUNTIF('Punktide jälgimine'!$C$4:C121,'Punktide jälgimine'!C121) -> 0
B151: 119 | C151: ='Punktide jälgimine'!C122&COUNTIF('Punktide jälgimine'!$C$4:C122,'Punktide jälgimine'!C122) -> 0
B152: 120 | C152: ='Punktide jälgimine'!C123&COUNTIF('Punktide jälgimine'!$C$4:C123,'Punktide jälgimine'!C123) -> 0
B153: 121 | C153: ='Punktide jälgimine'!C124&COUNTIF('Punktide jälgimine'!$C$4:C124,'Punktide jälgimine'!C124) -> 0
B154: 122 | C154: ='Punktide jälgimine'!C125&COUNTIF('Punktide jälgimine'!$C$4:C125,'Punktide jälgimine'!C125) -> 0
B155: 123 | C155: ='Punktide jälgimine'!C126&COUNTIF('Punktide jälgimine'!$C$4:C126,'Punktide jälgimine'!C126) -> 0
B156: 124 | C156: ='Punktide jälgimine'!C127&COUNTIF('Punktide jälgimine'!$C$4:C127,'Punktide jälgimine'!C127) -> 0
B157: 125 | C157: ='Punktide jälgimine'!C128&COUNTIF('Punktide jälgimine'!$C$4:C128,'Punktide jälgimine'!C128) -> 0
B158: 126 | C158: ='Punktide jälgimine'!C129&COUNTIF('Punktide jälgimine'!$C$4:C129,'Punktide jälgimine'!C129) -> 0
B159: 127 | C159: ='Punktide jälgimine'!C130&COUNTIF('Punktide jälgimine'!$C$4:C130,'Punktide jälgimine'!C130) -> 0
B160: 128 | C160: ='Punktide jälgimine'!C131&COUNTIF('Punktide jälgimine'!$C$4:C131,'Punktide jälgimine'!C131) -> 0
B161: 129 | C161: ='Punktide jälgimine'!C132&COUNTIF('Punktide jälgimine'!$C$4:C132,'Punktide jälgimine'!C132) -> 0
B162: 130 | C162: ='Punktide jälgimine'!C133&COUNTIF('Punktide jälgimine'!$C$4:C133,'Punktide jälgimine'!C133) -> 0
B163: 131 | C163: ='Punktide jälgimine'!C134&COUNTIF('Punktide jälgimine'!$C$4:C134,'Punktide jälgimine'!C134) -> 0
B164: 132 | C164: ='Punktide jälgimine'!C135&COUNTIF('Punktide jälgimine'!$C$4:C135,'Punktide jälgimine'!C135) -> 0
B165: 133 | C165: ='Punktide jälgimine'!C136&COUNTIF('Punktide jälgimine'!$C$4:C136,'Punktide jälgimine'!C136) -> 0
B166: 134 | C166: ='Punktide jälgimine'!C137&COUNTIF('Punktide jälgimine'!$C$4:C137,'Punktide jälgimine'!C137) -> 0
B167: 135 | C167: ='Punktide jälgimine'!C138&COUNTIF('Punktide jälgimine'!$C$4:C138,'Punktide jälgimine'!C138) -> 0
B168: 136 | C168: ='Punktide jälgimine'!C139&COUNTIF('Punktide jälgimine'!$C$4:C139,'Punktide jälgimine'!C139) -> 0
B169: 137 | C169: ='Punktide jälgimine'!C140&COUNTIF('Punktide jälgimine'!$C$4:C140,'Punktide jälgimine'!C140) -> 0
B170: 138 | C170: ='Punktide jälgimine'!C141&COUNTIF('Punktide jälgimine'!$C$4:C141,'Punktide jälgimine'!C141) -> 0
B171: 139 | C171: ='Punktide jälgimine'!C142&COUNTIF('Punktide jälgimine'!$C$4:C142,'Punktide jälgimine'!C142) -> 0
B172: 140 | C172: ='Punktide jälgimine'!C143&COUNTIF('Punktide jälgimine'!$C$4:C143,'Punktide jälgimine'!C143) -> 0
B173: 141 | C173: ='Punktide jälgimine'!C144&COUNTIF('Punktide jälgimine'!$C$4:C144,'Punktide jälgimine'!C144) -> 0
B174: 142 | C174: ='Punktide jälgimine'!C145&COUNTIF('Punktide jälgimine'!$C$4:C145,'Punktide jälgimine'!C145) -> 0
B175: 143 | C175: ='Punktide jälgimine'!C146&COUNTIF('Punktide jälgimine'!$C$4:C146,'Punktide jälgimine'!C146) -> 0
B176: 144 | C176: ='Punktide jälgimine'!C147&COUNTIF('Punktide jälgimine'!$C$4:C147,'Punktide jälgimine'!C147) -> 0
B177: 145 | C177: ='Punktide jälgimine'!C148&COUNTIF('Punktide jälgimine'!$C$4:C148,'Punktide jälgimine'!C148) -> 0
B178: 146 | C178: ='Punktide jälgimine'!C149&COUNTIF('Punktide jälgimine'!$C$4:C149,'Punktide jälgimine'!C149) -> 0
B179: 147 | C179: ='Punktide jälgimine'!C150&COUNTIF('Punktide jälgimine'!$C$4:C150,'Punktide jälgimine'!C150) -> 0
B180: 148 | C180: ='Punktide jälgimine'!C151&COUNTIF('Punktide jälgimine'!$C$4:C151,'Punktide jälgimine'!C151) -> 0
B181: 149 | C181: ='Punktide jälgimine'!C152&COUNTIF('Punktide jälgimine'!$C$4:C152,'Punktide jälgimine'!C152) -> 0
B182: 150 | C182: ='Punktide jälgimine'!C153&COUNTIF('Punktide jälgimine'!$C$4:C153,'Punktide jälgimine'!C153) -> 0
B183: 151 | C183: ='Punktide jälgimine'!C154&COUNTIF('Punktide jälgimine'!$C$4:C154,'Punktide jälgimine'!C154) -> 0
B184: 152 | C184: ='Punktide jälgimine'!C155&COUNTIF('Punktide jälgimine'!$C$4:C155,'Punktide jälgimine'!C155) -> 0
B185: 153 | C185: ='Punktide jälgimine'!C156&COUNTIF('Punktide jälgimine'!$C$4:C156,'Punktide jälgimine'!C156) -> 0
B186: 154 | C186: ='Punktide jälgimine'!C157&COUNTIF('Punktide jälgimine'!$C$4:C157,'Punktide jälgimine'!C157) -> 0
B187: 155 | C187: ='Punktide jälgimine'!C158&COUNTIF('Punktide jälgimine'!$C$4:C158,'Punktide jälgimine'!C158) -> 0
B188: 156 | C188: ='Punktide jälgimine'!C159&COUNTIF('Punktide jälgimine'!$C$4:C159,'Punktide jälgimine'!C159) -> 0
B189: 157 | C189: ='Punktide jälgimine'!C160&COUNTIF('Punktide jälgimine'!$C$4:C160,'Punktide jälgimine'!C160) -> 0
B190: 158 | C190: ='Punktide jälgimine'!C161&COUNTIF('Punktide jälgimine'!$C$4:C161,'Punktide jälgimine'!C161) -> 0
B191: 159 | C191: ='Punktide jälgimine'!C162&COUNTIF('Punktide jälgimine'!$C$4:C162,'Punktide jälgimine'!C162) -> 0
B192: 160 | C192: ='Punktide jälgimine'!C163&COUNTIF('Punktide jälgimine'!$C$4:C163,'Punktide jälgimine'!C163) -> 0
B193: 161 | C193: ='Punktide jälgimine'!C164&COUNTIF('Punktide jälgimine'!$C$4:C164,'Punktide jälgimine'!C164) -> 0
B194: 162 | C194: ='Punktide jälgimine'!C165&COUNTIF('Punktide jälgimine'!$C$4:C165,'Punktide jälgimine'!C165) -> 0
B195: 163 | C195: ='Punktide jälgimine'!C166&COUNTIF('Punktide jälgimine'!$C$4:C166,'Punktide jälgimine'!C166) -> 0
B196: 164 | C196: ='Punktide jälgimine'!C167&COUNTIF('Punktide jälgimine'!$C$4:C167,'Punktide jälgimine'!C167) -> 0
B197: 165 | C197: ='Punktide jälgimine'!C168&COUNTIF('Punktide jälgimine'!$C$4:C168,'Punktide jälgimine'!C168) -> 0
B198: 166 | C198: ='Punktide jälgimine'!C169&COUNTIF('Punktide jälgimine'!$C$4:C169,'Punktide jälgimine'!C169) -> 0
B199: 167 | C199: ='Punktide jälgimine'!C170&COUNTIF('Punktide jälgimine'!$C$4:C170,'Punktide jälgimine'!C170) -> 0
B200: 168 | C200: ='Punktide jälgimine'!C171&COUNTIF('Punktide jälgimine'!$C$4:C171,'Punktide jälgimine'!C171) -> 0
B201: 169 | C201: ='Punktide jälgimine'!C172&COUNTIF('Punktide jälgimine'!$C$4:C172,'Punktide jälgimine'!C172) -> 0
B202: 170 | C202: ='Punktide jälgimine'!C173&COUNTIF('Punktide jälgimine'!$C$4:C173,'Punktide jälgimine'!C173) -> 0
B203: 171 | C203: ='Punktide jälgimine'!C174&COUNTIF('Punktide jälgimine'!$C$4:C174,'Punktide jälgimine'!C174) -> 0
... 454 more rows
